[Event "Titled Tuesday Blitz April 4 Late 2023"]
[White "Grigorov, Grigor"]
[Black "Kukula, Pawel"]
[WhiteFideId "2907313"]
[BlackFideId "1115081"]
[WhiteElo "2510"]
[BlackElo "2012"]
[Result "1-0"]
[Round "01"]
[TimeControl "180+2"]
[Date "2023.04.04"]
[WhiteClock "0:00:14"]
[BlackClock "0:01:02"]

1. d4 {[%clk 0:03:00]}  e6 {[%clk 0:02:59]} 2. e4 {[%clk 0:02:57]}  d5 {[%clk 0:02:57]} 3. exd5 {[%clk 0:02:57]}  exd5 {[%clk 0:02:57]} 4. Nf3 {[%clk 0:02:57]}  Bd6 {[%clk 0:02:57]} 5. Bd3 {[%clk 0:02:56]}  Ne7 {[%clk 0:02:57]} 6. O-O {[%clk 0:02:51]}  Bf5 {[%clk 0:02:54]} 7. Bxf5 {[%clk 0:02:45]}  Nxf5 {[%clk 0:02:55]} 8. Re1+ {[%clk 0:02:45]}  Ne7 {[%clk 0:02:55]} 9. Bg5 {[%clk 0:02:28]}  f6 {[%clk 0:02:55]} 10. Bh4 {[%clk 0:02:28]}  Nc6 {[%clk 0:02:55]} 11. Qd3 {[%clk 0:02:25]}  Qd7 {[%clk 0:02:53]} 12. Nbd2 {[%clk 0:02:22]}  O-O-O {[%clk 0:02:53]} 13. c3 {[%clk 0:02:17]}  g5 {[%clk 0:02:44]} 14. Bg3 {[%clk 0:02:17]}  h5 {[%clk 0:02:45]} 15. b4 {[%clk 0:02:14]}  h4 {[%clk 0:02:44]} 16. Bxd6 {[%clk 0:02:14]}  Qxd6 {[%clk 0:02:45]} 17. Nb3 {[%clk 0:02:11]}  g4 {[%clk 0:02:44]} 18. Nfd2 {[%clk 0:02:11]}  g3 {[%clk 0:02:43]} 19. fxg3 {[%clk 0:02:10]}  hxg3 {[%clk 0:02:44]} 20. h3 {[%clk 0:02:04]}  Rde8 {[%clk 0:02:24]} 21. Nc5 {[%clk 0:02:01]}  Nd8 {[%clk 0:02:17]} 22. Re3 {[%clk 0:01:55]}  Nec6 {[%clk 0:02:09]} 23. Rae1 {[%clk 0:01:35]}  Rxe3 {[%clk 0:02:08]} 24. Rxe3 {[%clk 0:01:36]}  Rg8 {[%clk 0:02:00]} 25. Qf5+ {[%clk 0:01:32]}  Kb8 {[%clk 0:02:00]} 26. Nd7+ {[%clk 0:01:32]}  Ka8 {[%clk 0:01:58]} 27. Nf1 {[%clk 0:00:51]}  a6 {[%clk 0:01:55]} 28. Nxf6 {[%clk 0:00:43]}  Rf8 {[%clk 0:01:49]} 29. Rf3 {[%clk 0:00:39]}  Ne7 {[%clk 0:01:27]} 30. Qe5 {[%clk 0:00:31]}  Qxe5 {[%clk 0:01:22]} 31. dxe5 {[%clk 0:00:32]}  Ne6 {[%clk 0:01:21]} 32. Nxg3 {[%clk 0:00:29]}  d4 {[%clk 0:01:19]} 33. cxd4 {[%clk 0:00:22]}  Nxd4 {[%clk 0:01:20]} 34. Rd3 {[%clk 0:00:22]}  Nec6 {[%clk 0:01:18]} 35. a3 {[%clk 0:00:18]}  Rd8 {[%clk 0:01:11]} 36. Ng4 {[%clk 0:00:17]}  Ne2+ {[%clk 0:01:08]} 37. Nxe2 {[%clk 0:00:16]}  Rxd3 {[%clk 0:01:08]} 38. Nf4 {[%clk 0:00:15]}  Rd4 {[%clk 0:01:04]} 39. Ne6 {[%clk 0:00:12]}  Rd1+ {[%clk 0:00:59]} 40. Kf2 {[%clk 0:00:12]}  Kb8 {[%clk 0:01:00]} 41. h4 {[%clk 0:00:12]}  Rd5 {[%clk 0:00:58]} 42. Nf4 {[%clk 0:00:12]}  Rd4 {[%clk 0:00:57]} 43. Ke3 {[%clk 0:00:12]}  Rd1 {[%clk 0:00:57]} 44. h5 {[%clk 0:00:12]}  Re1+ {[%clk 0:00:57]} 45. Kf3 {[%clk 0:00:10]}  Nxe5+ {[%clk 0:00:57]} 46. Nxe5 {[%clk 0:00:11]}  Rxe5 {[%clk 0:00:58]} 47. h6 {[%clk 0:00:11]}  Re7 {[%clk 0:00:57]} 48. g4 {[%clk 0:00:10]}  b6 {[%clk 0:00:56]} 49. g5 {[%clk 0:00:10]}  c5 {[%clk 0:00:57]} 50. bxc5 {[%clk 0:00:10]}  bxc5 {[%clk 0:00:58]} 51. g6 {[%clk 0:00:11]}  c4 {[%clk 0:00:58]} 52. h7 {[%clk 0:00:11]}  Re8 {[%clk 0:00:59]} 53. g7 {[%clk 0:00:12]}  c3 {[%clk 0:00:59]} 54. g8=Q {[%clk 0:00:12]}  Rc8 {[%clk 0:01:00]} 55. Qxc8+ {[%clk 0:00:12]}  Kxc8 {[%clk 0:01:01]} 56. h8=Q+ {[%clk 0:00:12]}  Kb7 {[%clk 0:01:02]} 57. Qxc3 {[%clk 0:00:13]}  Kb6 {[%clk 0:01:03]} 58. Nd5+ {[%clk 0:00:12]}  Kb5 {[%clk 0:01:03]} 59. Qb4+ {[%clk 0:00:13]}  Kc6 {[%clk 0:01:03]} 60. Qb6+ {[%clk 0:00:13]}  Kxd5 {[%clk 0:01:02]} 61. Qxa6 {[%clk 0:00:14]}  Kc5 {[%clk 0:01:02]} 62. a4 {[%clk 0:00:14]} 1-0


[Site "https://www.chess.com"]

[Event "Titled Tuesday Blitz April 4 Late 2023"]
[White "QuiesPrecatio"]
[Black "Rustemov, Alexander"]
[BlackFideId "4119002"]
[WhiteElo "2459"]
[BlackElo "2853"]
[Result "0-1"]
[Round "01"]
[TimeControl "180+2"]
[Date "2023.04.04"]
[WhiteClock "0:00:04"]
[BlackClock "0:00:07"]

1. d4 {[%clk 0:02:54]}  g6 {[%clk 0:02:59]} 2. Nf3 {[%clk 0:02:52]}  Bg7 {[%clk 0:02:59]} 3. c4 {[%clk 0:02:46]}  c5 {[%clk 0:02:59]} 4. g3 {[%clk 0:02:37]}  cxd4 {[%clk 0:02:58]} 5. Nxd4 {[%clk 0:02:38]}  Nc6 {[%clk 0:02:58]} 6. Nc2 {[%clk 0:02:30]}  d6 {[%clk 0:02:52]} 7. Bg2 {[%clk 0:02:30]}  Be6 {[%clk 0:02:52]} 8. Ne3 {[%clk 0:02:27]}  Nf6 {[%clk 0:02:48]} 9. Nc3 {[%clk 0:02:26]}  O-O {[%clk 0:02:47]} 10. O-O {[%clk 0:02:25]}  Rc8 {[%clk 0:02:46]} 11. Qd2 {[%clk 0:02:19]}  Qa5 {[%clk 0:02:34]} 12. a3 {[%clk 0:02:09]}  Qh5 {[%clk 0:02:31]} 13. Ned5 {[%clk 0:01:55]}  Ng4 {[%clk 0:02:15]} 14. h3 {[%clk 0:01:45]}  Nge5 {[%clk 0:02:15]} 15. g4 {[%clk 0:01:44]}  Qh4 {[%clk 0:02:11]} 16. b3 {[%clk 0:01:32]}  h5 {[%clk 0:02:10]} 17. f3 {[%clk 0:01:27]}  Nd4 {[%clk 0:01:51]} 18. Rb1 {[%clk 0:01:19]}  hxg4 {[%clk 0:01:50]} 19. fxg4 {[%clk 0:01:07]}  Rfe8 {[%clk 0:01:32]} 20. Qg5 {[%clk 0:00:59]}  Qxg5 {[%clk 0:01:21]} 21. Bxg5 {[%clk 0:01:00]}  Ndc6 {[%clk 0:01:15]} 22. Rfd1 {[%clk 0:00:49]}  Nd7 {[%clk 0:01:13]} 23. Be3 {[%clk 0:00:45]}  Be5 {[%clk 0:01:07]} 24. Ne4 {[%clk 0:00:33]}  f6 {[%clk 0:01:05]} 25. Nf2 {[%clk 0:00:27]}  g5 {[%clk 0:01:04]} 26. Be4 {[%clk 0:00:26]}  Kg7 {[%clk 0:01:02]} 27. Kg2 {[%clk 0:00:23]}  b6 {[%clk 0:01:02]} 28. Nd3 {[%clk 0:00:23]}  Nc5 {[%clk 0:01:00]} 29. Bxc5 {[%clk 0:00:21]}  dxc5 {[%clk 0:00:55]} 30. Nxe5 {[%clk 0:00:21]}  Nxe5 {[%clk 0:00:55]} 31. Ne3 {[%clk 0:00:17]}  Rcd8 {[%clk 0:00:52]} 32. Bf5 {[%clk 0:00:16]}  Bf7 {[%clk 0:00:52]} 33. Be4 {[%clk 0:00:14]}  e6 {[%clk 0:00:51]} 34. Kg3 {[%clk 0:00:12]}  Kf8 {[%clk 0:00:46]} 35. Rxd8 {[%clk 0:00:12]}  Rxd8 {[%clk 0:00:46]} 36. Rd1 {[%clk 0:00:12]}  Rc8 {[%clk 0:00:38]} 37. Rd2 {[%clk 0:00:11]}  Ke7 {[%clk 0:00:39]} 38. Nd1 {[%clk 0:00:11]}  a6 {[%clk 0:00:32]} 39. Nc3 {[%clk 0:00:11]}  Rb8 {[%clk 0:00:31]} 40. Bd3 {[%clk 0:00:06]}  Be8 {[%clk 0:00:28]} 41. b4 {[%clk 0:00:05]}  cxb4 {[%clk 0:00:26]} 42. axb4 {[%clk 0:00:06]}  Rc8 {[%clk 0:00:27]} 43. Ne4 {[%clk 0:00:02]}  Nxc4 {[%clk 0:00:24]} 44. Rc2 {[%clk 0:00:03]}  Bb5 {[%clk 0:00:20]} 45. Nc3 {[%clk 0:00:01]}  Nd6 {[%clk 0:00:18]} 46. Nxb5 {[%clk 0:00:01]}  axb5 {[%clk 0:00:07]} 47. Rxc8 {[%clk 0:00:02]}  Nxc8 {[%clk 0:00:07]} 48. Bxb5 {[%clk 0:00:02]}  Nd6 {[%clk 0:00:08]} 49. Bd3 {[%clk 0:00:03]}  e5 {[%clk 0:00:07]} 50. Kf3 {[%clk 0:00:04]}  Ke6 {[%clk 0:00:07]} 51. Ke3 {[%clk 0:00:04]}  Kd5 {[%clk 0:00:08]} 52. Kd2 {[%clk 0:00:04]}  e4 {[%clk 0:00:08]} 53. Bb1 {[%clk 0:00:03]}  Nc4+ {[%clk 0:00:07]} 54. Kc3 {[%clk 0:00:03]}  Ne3 {[%clk 0:00:08]} 55. Ba2+ {[%clk 0:00:03]}  Ke5 {[%clk 0:00:08]} 56. Bb1 {[%clk 0:00:02]}  Ng2 {[%clk 0:00:08]} 57. Kc4 {[%clk 0:00:02]}  Nf4 {[%clk 0:00:07]} 58. Kb5 {[%clk 0:00:03]}  Nxe2 {[%clk 0:00:08]} 59. Kxb6 {[%clk 0:00:03]}  e3 {[%clk 0:00:08]} 60. Bd3 {[%clk 0:00:02]}  Nf4 {[%clk 0:00:09]} 61. Bc4 {[%clk 0:00:02]}  Kd4 {[%clk 0:00:09]} 62. Ba6 {[%clk 0:00:02]}  Nd3 {[%clk 0:00:08]} 63. Kc7 {[%clk 0:00:03]}  e2 {[%clk 0:00:08]} 64. Bxd3 {[%clk 0:00:03]}  e1=Q {[%clk 0:00:08]} 65. b5 {[%clk 0:00:04]}  Qe5+ {[%clk 0:00:07]} 66. Kc6 {[%clk 0:00:04]}  Kxd3 {[%clk 0:00:08]} 67. b6 {[%clk 0:00:04]}  Qb8 {[%clk 0:00:07]} 0-1


[Site "https://www.chess.com"]

[Event "Titled Tuesday Blitz April 4 Late 2023"]
[White "Ashraf, Artin"]
[Black "Fieberg, Samuel"]
[WhiteFideId "22514805"]
[BlackFideId "12901717"]
[WhiteElo "2188"]
[BlackElo "2455"]
[Result "1-0"]
[Round "01"]
[TimeControl "180+2"]
[Date "2023.04.04"]
[WhiteClock "0:01:29"]
[BlackClock "0:01:27"]

1. e4 {[%clk 0:03:00]}  e6 {[%clk 0:02:57]} 2. d3 {[%clk 0:02:59]}  d5 {[%clk 0:02:57]} 3. Nd2 {[%clk 0:03:00]}  Nf6 {[%clk 0:02:57]} 4. g3 {[%clk 0:03:00]}  Be7 {[%clk 0:02:57]} 5. Bg2 {[%clk 0:03:00]}  O-O {[%clk 0:02:57]} 6. Ngf3 {[%clk 0:02:58]}  a5 {[%clk 0:02:58]} 7. O-O {[%clk 0:02:58]}  a4 {[%clk 0:02:58]} 8. a3 {[%clk 0:02:57]}  Nc6 {[%clk 0:02:57]} 9. e5 {[%clk 0:02:55]}  Nd7 {[%clk 0:02:57]} 10. Re1 {[%clk 0:02:55]}  f6 {[%clk 0:02:54]} 11. exf6 {[%clk 0:02:53]}  Bxf6 {[%clk 0:02:54]} 12. Nf1 {[%clk 0:02:24]}  e5 {[%clk 0:02:54]} 13. h3 {[%clk 0:02:21]}  Nb6 {[%clk 0:02:50]} 14. Ne3 {[%clk 0:02:20]}  Be6 {[%clk 0:02:46]} 15. Ng4 {[%clk 0:02:20]}  h5 {[%clk 0:02:33]} 16. Ngxe5 {[%clk 0:02:12]}  Bxe5 {[%clk 0:02:29]} 17. Nxe5 {[%clk 0:02:13]}  Qf6 {[%clk 0:02:22]} 18. Nxc6 {[%clk 0:01:38]}  Qxf2+ {[%clk 0:02:21]} 19. Kh2 {[%clk 0:01:36]}  Bxh3 {[%clk 0:01:32]} 20. Ne7+ {[%clk 0:01:32]}  Kh7 {[%clk 0:01:27]} 21. Qxh5# {[%clk 0:01:29]} 1-0


[Site "https://www.chess.com"]

[Event "Titled Tuesday Blitz April 4 Late 2023"]
[White "Mordechai, Hanan"]
[Black "Timofeev, Artyom"]
[WhiteFideId "2804166"]
[BlackFideId "4140419"]
[WhiteElo "2324"]
[BlackElo "2586"]
[Result "0-1"]
[Round "01"]
[TimeControl "180+2"]
[Date "2023.04.04"]
[WhiteClock "0:00:29"]
[BlackClock "0:00:05"]

1. Nf3 {[%clk 0:02:58]}  c5 {[%clk 0:02:59]} 2. c4 {[%clk 0:02:58]}  Nf6 {[%clk 0:02:58]} 3. g3 {[%clk 0:02:57]}  d5 {[%clk 0:02:58]} 4. cxd5 {[%clk 0:02:56]}  Nxd5 {[%clk 0:02:58]} 5. Bg2 {[%clk 0:02:57]}  Nc6 {[%clk 0:02:57]} 6. O-O {[%clk 0:02:58]}  e5 {[%clk 0:02:56]} 7. Nc3 {[%clk 0:02:57]}  Nc7 {[%clk 0:02:56]} 8. d3 {[%clk 0:02:57]}  Be7 {[%clk 0:02:56]} 9. a3 {[%clk 0:02:50]}  O-O {[%clk 0:02:54]} 10. Rb1 {[%clk 0:02:49]}  Be6 {[%clk 0:02:45]} 11. b4 {[%clk 0:02:35]}  cxb4 {[%clk 0:02:44]} 12. axb4 {[%clk 0:02:36]}  Bxb4 {[%clk 0:02:43]} 13. Bd2 {[%clk 0:02:31]}  a5 {[%clk 0:02:40]} 14. Qa4 {[%clk 0:02:26]}  Nd4 {[%clk 0:02:29]} 15. Nxd4 {[%clk 0:02:18]}  exd4 {[%clk 0:02:29]} 16. Ne4 {[%clk 0:02:19]}  b5 {[%clk 0:02:27]} 17. Qc2 {[%clk 0:02:19]}  Nd5 {[%clk 0:02:19]} 18. Bxb4 {[%clk 0:02:14]}  axb4 {[%clk 0:01:49]} 19. Qc5 {[%clk 0:02:14]}  Ra2 {[%clk 0:01:21]} 20. Qxd4 {[%clk 0:02:03]}  Rxe2 {[%clk 0:01:20]} 21. Nc5 {[%clk 0:01:57]}  Nc3 {[%clk 0:00:49]} 22. Rxb4 {[%clk 0:01:55]}  Qxd4 {[%clk 0:00:46]} 23. Rxd4 {[%clk 0:01:56]}  Bf5 {[%clk 0:00:41]} 24. Ne4 {[%clk 0:01:55]}  Rxe4 {[%clk 0:00:29]} 25. dxe4 {[%clk 0:01:38]}  Ne2+ {[%clk 0:00:28]} 26. Kh1 {[%clk 0:01:38]}  Nxd4 {[%clk 0:00:28]} 27. exf5 {[%clk 0:01:39]}  Nxf5 {[%clk 0:00:27]} 28. Rb1 {[%clk 0:01:37]}  Rb8 {[%clk 0:00:27]} 29. Kg1 {[%clk 0:01:34]}  b4 {[%clk 0:00:27]} 30. Bd5 {[%clk 0:01:35]}  Kf8 {[%clk 0:00:25]} 31. Kf1 {[%clk 0:01:35]}  Nd4 {[%clk 0:00:25]} 32. Ke1 {[%clk 0:01:33]}  Ke7 {[%clk 0:00:24]} 33. Kd2 {[%clk 0:01:34]}  Rd8 {[%clk 0:00:15]} 34. Bg2 {[%clk 0:01:25]}  Nb5+ {[%clk 0:00:14]} 35. Ke3 {[%clk 0:01:23]}  Na3 {[%clk 0:00:14]} 36. Rb3 {[%clk 0:01:22]}  Nc2+ {[%clk 0:00:14]} 37. Kf4 {[%clk 0:01:20]}  Rd4+ {[%clk 0:00:14]} 38. Kf3 {[%clk 0:01:17]}  Rc4 {[%clk 0:00:12]} 39. Bf1 {[%clk 0:01:00]}  Nd4+ {[%clk 0:00:11]} 40. Ke3 {[%clk 0:01:01]}  Nxb3 {[%clk 0:00:11]} 41. Bxc4 {[%clk 0:01:02]}  Nc5 {[%clk 0:00:11]} 42. Kd4 {[%clk 0:00:59]}  Ne6+ {[%clk 0:00:11]} 43. Kd3 {[%clk 0:00:55]}  g5 {[%clk 0:00:11]} 44. Bd5 {[%clk 0:00:53]}  g4 {[%clk 0:00:11]} 45. Kc4 {[%clk 0:00:53]}  Ng5 {[%clk 0:00:07]} 46. Kxb4 {[%clk 0:00:49]}  Kd6 {[%clk 0:00:06]} 47. Bb3 {[%clk 0:00:47]}  Ke5 {[%clk 0:00:06]} 48. Bc2 {[%clk 0:00:48]}  f5 {[%clk 0:00:06]} 49. Bd1 {[%clk 0:00:44]}  Nh3 {[%clk 0:00:06]} 50. f3 {[%clk 0:00:43]}  Nf2 {[%clk 0:00:06]} 51. Be2 {[%clk 0:00:42]}  Kd4 {[%clk 0:00:05]} 52. fxg4 {[%clk 0:00:37]}  fxg4 {[%clk 0:00:05]} 53. Bf1 {[%clk 0:00:37]}  Ke3 {[%clk 0:00:05]} 54. Kc5 {[%clk 0:00:38]}  Ne4+ {[%clk 0:00:05]} 55. Kd5 {[%clk 0:00:38]}  Nd2 {[%clk 0:00:05]} 56. Ba6 {[%clk 0:00:37]}  Nf3 {[%clk 0:00:05]} 57. Bc8 {[%clk 0:00:37]}  Nxh2 {[%clk 0:00:05]} 58. Ke5 {[%clk 0:00:38]}  Kf3 {[%clk 0:00:05]} 59. Kf6 {[%clk 0:00:38]}  Kxg3 {[%clk 0:00:06]} 60. Kg5 {[%clk 0:00:39]}  Kf3 {[%clk 0:00:04]} 61. Bb7+ {[%clk 0:00:38]}  Kf2 {[%clk 0:00:03]} 62. Kh4 {[%clk 0:00:37]}  g3 {[%clk 0:00:03]} 63. Bh1 {[%clk 0:00:29]}  Nf3+ {[%clk 0:00:04]} 64. Kg4 {[%clk 0:00:28]}  Ne1 {[%clk 0:00:03]} 65. Kh5 {[%clk 0:00:26]}  Nf3 {[%clk 0:00:03]} 66. Kh6 {[%clk 0:00:26]}  Ne5 {[%clk 0:00:03]} 67. Kxh7 {[%clk 0:00:25]}  Kg1 {[%clk 0:00:04]} 68. Be4 {[%clk 0:00:25]}  Ng4 {[%clk 0:00:03]} 69. Kg6 {[%clk 0:00:23]}  Kf2 {[%clk 0:00:03]} 70. Ba8 {[%clk 0:00:22]}  Nh2 {[%clk 0:00:03]} 71. Bh1 {[%clk 0:00:22]}  Nf3 {[%clk 0:00:04]} 72. Kf5 {[%clk 0:00:21]}  Nd4+ {[%clk 0:00:04]} 73. Kf4 {[%clk 0:00:22]}  Nc2 {[%clk 0:00:04]} 74. Kg4 {[%clk 0:00:22]}  Ne1 {[%clk 0:00:04]} 75. Kh3 {[%clk 0:00:23]}  Nf3 {[%clk 0:00:04]} 76. Bg2 {[%clk 0:00:24]}  Ng1+ {[%clk 0:00:03]} 77. Kg4 {[%clk 0:00:23]}  Kxg2 {[%clk 0:00:04]} 78. Kf4 {[%clk 0:00:24]}  Kh2 {[%clk 0:00:05]} 79. Ke3 {[%clk 0:00:25]}  g2 {[%clk 0:00:05]} 80. Kf2 {[%clk 0:00:26]}  Nh3+ {[%clk 0:00:05]} 81. Ke3 {[%clk 0:00:27]}  g1=Q+ {[%clk 0:00:06]} 82. Ke4 {[%clk 0:00:27]}  Qg3 {[%clk 0:00:06]} 83. Kf5 {[%clk 0:00:28]}  Nf2 {[%clk 0:00:05]} 84. Ke6 {[%clk 0:00:29]}  Qh4 {[%clk 0:00:05]} 85. Kd5 {[%clk 0:00:30]}  Qf4 {[%clk 0:00:04]} 86. Ke6 {[%clk 0:00:28]}  Qg5 {[%clk 0:00:04]} 87. Kd6 {[%clk 0:00:29]}  Qf5 {[%clk 0:00:05]} 88. Kc6 {[%clk 0:00:29]}  Qe5 {[%clk 0:00:05]} 0-1


[Site "https://www.chess.com"]

[Event "Titled Tuesday Blitz April 4 Late 2023"]
[White "Szpar, Milosz"]
[Black "Romkachess"]
[WhiteFideId "1184989"]
[WhiteElo "2436"]
[BlackElo "2448"]
[Result "1-0"]
[Round "01"]
[TimeControl "180+2"]
[Date "2023.04.04"]
[WhiteClock "0:00:17"]
[BlackClock "0:00:01"]

1. e4 {[%clk 0:03:00]}  c5 {[%clk 0:02:58]} 2. Nf3 {[%clk 0:02:55]}  d6 {[%clk 0:02:58]} 3. Bb5+ {[%clk 0:02:51]}  Bd7 {[%clk 0:02:57]} 4. c4 {[%clk 0:02:47]}  Nc6 {[%clk 0:02:55]} 5. O-O {[%clk 0:02:37]}  g6 {[%clk 0:02:50]} 6. d4 {[%clk 0:02:33]}  cxd4 {[%clk 0:02:50]} 7. Nxd4 {[%clk 0:02:33]}  Bg7 {[%clk 0:02:49]} 8. Be3 {[%clk 0:02:33]}  Nf6 {[%clk 0:02:49]} 9. f3 {[%clk 0:02:19]}  O-O {[%clk 0:02:46]} 10. Nc3 {[%clk 0:02:15]}  a6 {[%clk 0:02:39]} 11. Bxc6 {[%clk 0:02:13]}  bxc6 {[%clk 0:02:40]} 12. c5 {[%clk 0:02:09]}  d5 {[%clk 0:02:18]} 13. e5 {[%clk 0:02:03]}  Ne8 {[%clk 0:02:18]} 14. f4 {[%clk 0:02:01]}  Nc7 {[%clk 0:02:15]} 15. Na4 {[%clk 0:01:35]}  Ne6 {[%clk 0:02:02]} 16. Nb6 {[%clk 0:01:33]}  Rb8 {[%clk 0:02:01]} 17. b4 {[%clk 0:01:32]}  Nxd4 {[%clk 0:01:16]} 18. Bxd4 {[%clk 0:01:32]}  Bf5 {[%clk 0:01:17]} 19. Qe2 {[%clk 0:01:28]}  f6 {[%clk 0:00:47]} 20. Qxa6 {[%clk 0:01:24]}  fxe5 {[%clk 0:00:46]} 21. fxe5 {[%clk 0:01:24]}  e6 {[%clk 0:00:35]} 22. Qe2 {[%clk 0:01:22]}  Bh6 {[%clk 0:00:29]} 23. a4 {[%clk 0:01:19]}  Qe7 {[%clk 0:00:22]} 24. a5 {[%clk 0:01:17]}  Be4 {[%clk 0:00:23]} 25. a6 {[%clk 0:01:15]}  Rxf1+ {[%clk 0:00:22]} 26. Rxf1 {[%clk 0:01:14]}  Rf8 {[%clk 0:00:20]} 27. Rxf8+ {[%clk 0:01:12]}  Bxf8 {[%clk 0:00:20]} 28. Qa2 {[%clk 0:00:52]}  Qg5 {[%clk 0:00:15]} 29. Qb2 {[%clk 0:00:50]}  Qg4 {[%clk 0:00:13]} 30. a7 {[%clk 0:00:37]}  Bxg2 {[%clk 0:00:12]} 31. a8=Q {[%clk 0:00:27]}  Bh3+ {[%clk 0:00:06]} 32. Kf2 {[%clk 0:00:27]}  Qg2+ {[%clk 0:00:05]} 33. Ke1 {[%clk 0:00:27]}  Qf1+ {[%clk 0:00:05]} 34. Kd2 {[%clk 0:00:27]}  Qf4+ {[%clk 0:00:03]} 35. Be3 {[%clk 0:00:17]}  Qxh2+ {[%clk 0:00:03]} 36. Kc3 {[%clk 0:00:17]}  Qg3 {[%clk 0:00:03]} 37. Qf2 {[%clk 0:00:17]}  Qxe5+ {[%clk 0:00:01]} 38. Bd4 {[%clk 0:00:17]} 1-0


[Site "https://www.chess.com"]

[Event "Titled Tuesday Blitz April 4 Late 2023"]
[White "Rios Escobar, Adan"]
[Black "Krzyzanowski, Marcin"]
[WhiteFideId "3403645"]
[BlackFideId "1132199"]
[WhiteElo "2437"]
[BlackElo "2471"]
[Result "1-0"]
[Round "01"]
[TimeControl "180+2"]
[Date "2023.04.04"]
[WhiteClock "0:00:28"]
[BlackClock "0:00:53"]

1. d4 {[%clk 0:02:53]}  d5 {[%clk 0:02:59]} 2. g3 {[%clk 0:02:53]}  c5 {[%clk 0:02:58]} 3. Nf3 {[%clk 0:02:53]}  cxd4 {[%clk 0:02:58]} 4. Bg2 {[%clk 0:02:53]}  Nc6 {[%clk 0:02:57]} 5. Nxd4 {[%clk 0:02:52]}  Nf6 {[%clk 0:02:57]} 6. O-O {[%clk 0:02:50]}  e6 {[%clk 0:02:55]} 7. c4 {[%clk 0:02:48]}  Bc5 {[%clk 0:02:53]} 8. Nxc6 {[%clk 0:02:46]}  bxc6 {[%clk 0:02:54]} 9. Nc3 {[%clk 0:02:42]}  O-O {[%clk 0:02:54]} 10. Na4 {[%clk 0:02:31]}  Be7 {[%clk 0:02:52]} 11. b3 {[%clk 0:02:29]}  e5 {[%clk 0:02:39]} 12. Bb2 {[%clk 0:02:26]}  e4 {[%clk 0:02:39]} 13. Rc1 {[%clk 0:02:21]}  Bg4 {[%clk 0:02:37]} 14. h3 {[%clk 0:02:14]}  Be6 {[%clk 0:02:33]} 15. e3 {[%clk 0:02:07]}  Qd7 {[%clk 0:02:32]} 16. Kh2 {[%clk 0:02:07]}  dxc4 {[%clk 0:02:24]} 17. bxc4 {[%clk 0:02:01]}  Qc7 {[%clk 0:02:01]} 18. Bxf6 {[%clk 0:01:53]}  Bxf6 {[%clk 0:02:02]} 19. Nc5 {[%clk 0:01:53]}  Bf5 {[%clk 0:01:33]} 20. Nxe4 {[%clk 0:01:51]}  Bb2 {[%clk 0:01:33]} 21. Rc2 {[%clk 0:01:45]}  Ba3 {[%clk 0:01:32]} 22. Rd2 {[%clk 0:01:42]}  Qa5 {[%clk 0:01:27]} 23. Nd6 {[%clk 0:01:35]}  Bxd6 {[%clk 0:01:18]} 24. Rxd6 {[%clk 0:01:35]}  Qxa2 {[%clk 0:01:19]} 25. Bxc6 {[%clk 0:01:31]}  Rab8 {[%clk 0:01:15]} 26. Bd5 {[%clk 0:01:28]}  Rb2 {[%clk 0:01:11]} 27. Qf3 {[%clk 0:01:26]}  Bg6 {[%clk 0:01:07]} 28. h4 {[%clk 0:01:21]}  Qa3 {[%clk 0:00:53]} 29. Rc6 {[%clk 0:00:41]}  h5 {[%clk 0:00:53]} 30. Rxg6 {[%clk 0:00:33]}  Qd3 {[%clk 0:00:53]} 31. Qf6 {[%clk 0:00:28]} 1-0


[Site "https://www.chess.com"]

[Event "Titled Tuesday Blitz April 4 Late 2023"]
[White "Marczuk, Dominik"]
[Black "Costachi, Mihnea"]
[WhiteFideId "1111264"]
[BlackFideId "1217518"]
[WhiteElo "2174"]
[BlackElo "2456"]
[Result "0-1"]
[Round "01"]
[TimeControl "180+2"]
[Date "2023.04.04"]
[WhiteClock "0:00:19"]
[BlackClock "0:02:06"]

1. e4 {[%clk 0:02:58]}  e5 {[%clk 0:02:59]} 2. Nf3 {[%clk 0:02:58]}  Nc6 {[%clk 0:03:00]} 3. Bc4 {[%clk 0:02:58]}  Bc5 {[%clk 0:02:59]} 4. O-O {[%clk 0:02:58]}  d6 {[%clk 0:02:58]} 5. c3 {[%clk 0:02:58]}  Nf6 {[%clk 0:02:57]} 6. d3 {[%clk 0:02:59]}  h6 {[%clk 0:02:57]} 7. Nbd2 {[%clk 0:02:58]}  a6 {[%clk 0:02:58]} 8. Bb3 {[%clk 0:02:58]}  Ba7 {[%clk 0:02:59]} 9. Re1 {[%clk 0:02:56]}  O-O {[%clk 0:02:57]} 10. Nf1 {[%clk 0:02:56]}  Nh5 {[%clk 0:02:57]} 11. Ne3 {[%clk 0:02:35]}  Nf4 {[%clk 0:02:56]} 12. Nd5 {[%clk 0:02:34]}  Nxd5 {[%clk 0:02:53]} 13. exd5 {[%clk 0:02:35]}  Ne7 {[%clk 0:02:54]} 14. d4 {[%clk 0:02:21]}  exd4 {[%clk 0:02:54]} 15. Nxd4 {[%clk 0:02:20]}  Nf5 {[%clk 0:02:54]} 16. Nxf5 {[%clk 0:02:13]}  Bxf5 {[%clk 0:02:55]} 17. Qf3 {[%clk 0:02:13]}  Qf6 {[%clk 0:02:53]} 18. Be3 {[%clk 0:02:02]}  Bxe3 {[%clk 0:02:40]} 19. Rxe3 {[%clk 0:02:02]}  Qg5 {[%clk 0:02:37]} 20. Rae1 {[%clk 0:01:55]}  Bd7 {[%clk 0:02:32]} 21. Bc2 {[%clk 0:01:51]}  Rae8 {[%clk 0:02:28]} 22. g3 {[%clk 0:01:34]}  Rxe3 {[%clk 0:02:27]} 23. Rxe3 {[%clk 0:01:34]}  Rd8 {[%clk 0:02:15]} 24. h4 {[%clk 0:01:31]}  Qg4 {[%clk 0:02:15]} 25. Qxg4 {[%clk 0:01:18]}  Bxg4 {[%clk 0:02:16]} 26. f3 {[%clk 0:01:18]}  Bd7 {[%clk 0:02:16]} 27. Kf2 {[%clk 0:01:18]}  Kf8 {[%clk 0:02:16]} 28. g4 {[%clk 0:01:12]}  c5 {[%clk 0:02:14]} 29. h5 {[%clk 0:00:58]}  b5 {[%clk 0:02:13]} 30. Kg3 {[%clk 0:00:51]}  a5 {[%clk 0:02:12]} 31. f4 {[%clk 0:00:50]}  c4 {[%clk 0:02:13]} 32. g5 {[%clk 0:00:49]}  b4 {[%clk 0:02:13]} 33. gxh6 {[%clk 0:00:45]}  gxh6 {[%clk 0:02:14]} 34. f5 {[%clk 0:00:46]}  Kg7 {[%clk 0:02:11]} 35. Kf4 {[%clk 0:00:40]}  Kf6 {[%clk 0:02:11]} 36. b3 {[%clk 0:00:23]}  Rc8 {[%clk 0:02:08]} 37. cxb4 {[%clk 0:00:17]}  axb4 {[%clk 0:02:08]} 38. bxc4 {[%clk 0:00:17]}  Rxc4+ {[%clk 0:02:09]} 39. Be4 {[%clk 0:00:17]}  Bxf5 {[%clk 0:02:09]} 40. Kf3 {[%clk 0:00:15]}  Bxe4+ {[%clk 0:02:02]} 41. Rxe4 {[%clk 0:00:16]}  Rxe4 {[%clk 0:02:03]} 42. Kxe4 {[%clk 0:00:17]}  Kg5 {[%clk 0:02:04]} 43. Kd4 {[%clk 0:00:17]}  f5 {[%clk 0:02:04]} 44. Kc4 {[%clk 0:00:18]}  f4 {[%clk 0:02:05]} 45. Kxb4 {[%clk 0:00:19]}  f3 {[%clk 0:02:05]} 46. a3 {[%clk 0:00:19]}  f2 {[%clk 0:02:06]} 0-1


[Site "https://www.chess.com"]